fUSD/lending_fUSD_20260618
["ID","MTS","AMOUNT","RATE_DAILY","PERIOD"]
[425354100,1781713838000,-159.09,0.00028641,2]
[425354110,1781713838000,-159.09,0.0002891,30]
[425354113,1781713838000,-847.63,0.00028971,2]
[425354112,1781713838000,-437.39,0.0002897,2]
[425354107,1781713838000,-847.63,0.00028804,7]
[425354111,1781713838000,-159.09,0.00028963,2]
[425354105,1781713838000,-159.09,0.00028802,2]
[425354106,1781713838000,-437.39,0.00028803,7]
[425354104,1781713838000,-159.09,0.00028748,30]
[425354103,1781713838000,-159.09,0.00028694,7]
[425354091,1781713838000,-437.39,0.00028637,30]
[425354095,1781713838000,-261.75065314,0.00028638,30]
[425354093,1781713838000,-585.87934686,0.00028638,30]
[425354097,1781713838000,-2789.21,0.0002864,30]
[425354130,1781713838000,-429.70904658,0.00029681,7]
[425354108,1781713838000,-2789.21,0.00028806,7]
[425354132,1781713838000,-473.44643561,0.00029681,7]
[425354128,1781713838000,-362.05797599,0.00029681,7]
[425354131,1781713838000,-484.52835254,0.00029681,7]
[425354165,1781713838000,-335.21,0.00029828,7]
[425354163,1781713838000,-847.63,0.00029803,7]
[425354161,1781713838000,-437.39,0.00029803,7]
[425354160,1781713838000,-759.23,0.000298,7]
[425354154,1781713838000,-151.0,0.0002974,2]
[425354156,1781713838000,-151.0,0.00029795,2]
[425354157,1781713838000,-500.0,0.00029799,7]
[425354152,1781713838000,-13537.24,0.000297,2]
[425354159,1781713838000,-815.23,0.000298,7]
[425354158,1781713838000,-709.79,0.000298,7]
[425354153,1781713838000,-23744.31151175,0.00029703,7]
[425354150,1781713838000,-151.0,0.00029685,2]
[425354149,1781713838000,-490.97278512,0.00029681,7]
[425354147,1781713838000,-359.34590452,0.00029681,7]
[425354133,1781713838000,-487.10867679,0.00029681,7]
[425354146,1781713838000,-427.06921505,0.00029681,7]
[425354145,1781713838000,-350.91174697,0.00029681,7]
[425354144,1781713838000,-441.49358948,0.00029681,7]
[425354143,1781713838000,-436.93864632,0.00029681,7]
[425354148,1781713838000,-424.53329977,0.00029681,7]
[425354141,1781713838000,-427.45002542,0.00029681,7]
[425354142,1781713838000,-361.7534569,0.00029681,7]
[425354139,1781713838000,-610.29449399,0.00029681,7]
[425354136,1781713838000,-204.73440241,0.00029681,7]
[425354137,1781713838000,-500.05923281,0.00029681,7]
[425354138,1781713838000,-437.21597337,0.00029681,7]
[425354134,1781713838000,-426.30980553,0.00029681,7]
[425354135,1781713838000,-229.71518198,0.00029681,7]
[425354166,1781713838000,-153.24,0.00029846,2]
[425354129,1781713838000,-304.81095943,0.00029681,7]
[425354140,1781713838000,-418.8938871,0.00029681,7]
[425354167,1781713839000,-151.0,0.0002985,2]
[425354170,1781713839000,-2864.90479303,0.00029891,2]
[425354169,1781713839000,-894.2286282,0.00029891,2]
[425354168,1781713839000,-500.0,0.0002989,2]
[425354210,1781713841000,-151.0,0.00030015,2]
[425354208,1781713841000,-181.08010149,0.00030013,2]
[425354220,1781713841000,-1000.0,0.00030137,120]
[425354218,1781713841000,-249.08879002,0.00030135,2]
[425354209,1781713841000,-151.0,0.00030013,2]
[425354202,1781713841000,-250.0,0.00029967,15]
[425354204,1781713841000,-350.01,0.00029967,15]
[425354205,1781713841000,-172.76612469,0.00029972,2]
[425354203,1781713841000,-250.0,0.00029967,15]
[425354200,1781713841000,-159.0,0.0002995,30]
[425354201,1781713841000,-151.0,0.0002996,2]
[425354197,1781713841000,-1670.58779231,0.00029943,2]
[425354199,1781713841000,-159.0,0.0002995,30]
[425354198,1781713841000,-158.0,0.0002995,30]
[425354207,1781713841000,-168.01678514,0.00030008,2]
[425354196,1781713841000,-151.0,0.00029905,2]
[425354195,1781713841000,-25209.13681507,0.00029891,2]
[425354193,1781713841000,-159.09,0.00029179,7]
[425354192,1781713841000,-159.09,0.00029125,2]
[425354189,1781713841000,-150.72,0.00025266,30]
[425354194,1781713841000,-2789.21,0.00029804,7]
[425354190,1781713841000,-150.72,0.00025571,2]
[425354191,1781713841000,-159.09,0.00029071,30]
[425354188,1781713841000,-150.72,0.00024962,7]
[425354187,1781713841000,-150.72,0.00024658,2]
[425354206,1781713841000,-400.0,0.00029975,2]
[425354211,1781713841000,-209.0,0.00030037,2]
[425354219,1781713841000,-506.8804926,0.00030137,2]
[425354216,1781713841000,-122453.68760379,0.0003013,7]
[425354243,1781713841000,-158.0,0.0003095,30]
[425354242,1781713841000,-241.15071658,0.00030932,4]
[425354239,1781713841000,-500.15342479,0.00030811,2]
[425354237,1781713841000,-533.15383012,0.00030732,2]
[425354238,1781713841000,-533.15383012,0.00030735,2]
[425354240,1781713841000,-1670.58779231,0.00030874,2]
[425354234,1781713841000,-688.5,0.00030694,7]
[425354236,1781713841000,-736.45,0.00030694,7]
[425354235,1781713841000,-790.77,0.00030694,7]
[425354233,1781713841000,-500.0,0.00030661,5]
[425354232,1781713841000,-151.0,0.00030561,2]
[425354231,1781713841000,-174.61919142,0.00030561,2]
[425354230,1781713841000,-153.24,0.00030556,2]
[425354212,1781713841000,-500.0,0.00030099,2]
[425354228,1781713841000,-1114.62226754,0.00030508,2]
[425354229,1781713841000,-172.76612469,0.0003051,2]
[425354215,1781713841000,-24743.24174668,0.0003013,7]
[425354217,1781713841000,-160.0,0.00030135,2]
[425354214,1781713841000,-180.30525428,0.00030129,2]
[425354221,1781713841000,-178.51046928,0.00030137,30]
[425354213,1781713841000,-194.0,0.000301,7]
[425354225,1781713841000,-1670.58779231,0.00030409,2]
[425354223,1781713841000,-151.0,0.00030239,2]
[425354222,1781713841000,-1091.26,0.000302,7]
[425354226,1781713841000,-178.09,0.00030411,120]
[425354227,1781713841000,-1629.861,0.00030411,26]
[425354224,1781713841000,-250.0,0.00030319,7]
[425354275,1781713842000,-222.90413721,0.00031313,2]
[425354267,1781713842000,-514.3,0.00031209,30]
[425354277,1781713842000,-1670.58779231,0.00031339,2]
[425354268,1781713842000,-153.24,0.00031267,2]
[425354276,1781713842000,-2209.37,0.00031318,7]
[425354270,1781713842000,-533.15383012,0.00031272,2]
[425354271,1781713842000,-2209.37,0.00031292,2]
[425354274,1781713842000,-222.90413721,0.00031313,2]
[425354272,1781713842000,-500.15342479,0.00031297,2]
[425354285,1781713842000,-150.0,0.00031423,7]
[425354278,1781713842000,-2209.37,0.00031352,2]
[425354280,1781713842000,-2209.37,0.0003138,2]
[425354282,1781713842000,-670.70437404,0.00031407,2]
[425354284,1781713842000,-150.0,0.00031423,7]
[425354269,1781713842000,-2209.37,0.00031271,7]
[425354286,1781713842000,-150.0,0.00031423,7]
[425354289,1781713842000,-150.0,0.00031423,7]
[425354288,1781713842000,-150.0,0.00031423,7]
[425354287,1781713842000,-150.0,0.00031423,7]
[425354273,1781713842000,-949.0,0.000313,2]
[425354262,1781713842000,-375.33345408,0.00031146,28]
[425354260,1781713842000,-161.0,0.00031133,10]
[425354265,1781713842000,-533.15383012,0.00031155,2]
[425354244,1781713842000,-159.0,0.0003095,30]
[425354246,1781713842000,-1040.0,0.00030976,5]
[425354252,1781713842000,-150.0,0.00031011,2]
[425354253,1781713842000,-152.0,0.00031024,7]
[425354254,1781713842000,-2209.37,0.00031028,7]
[425354255,1781713842000,-172.76612469,0.00031048,2]
[425354245,1781713842000,-159.0,0.0003095,30]
[425354249,1781713842000,-5896.0,0.00031,2]
[425354290,1781713842000,-150.0,0.00031423,7]
[425354248,1781713842000,-350.0,0.00030986,18]
[425354250,1781713842000,-1091.26,0.00031,7]
[425354251,1781713842000,-1036.94,0.00031,30]
[425354256,1781713842000,-533.15383012,0.00031081,2]
[425354258,1781713842000,-151.0,0.00031109,2]
[425354266,1781713842000,-1000.0,0.000312,7]
[425354257,1781713842000,-152.0,0.00031086,7]
[425354259,1781713842000,-162.0,0.00031131,10]
[425354264,1781713842000,-759.6963,0.00031146,28]
[425354263,1781713842000,-561.47640008,0.00031146,28]
[425354261,1781713842000,-212.75977033,0.00031146,28]
[425354247,1781713842000,-949.0,0.00030976,5]
[425354301,1781713842000,-1091.26,0.000316,7]
[425354292,1781713842000,-150.0,0.00031423,7]
[425354316,1781713842000,-155.23751571,0.00031942,2]
[425354318,1781713842000,-158.0,0.0003195,30]
[425354322,1781713842000,-4000.0,0.00031997,3]
[425354319,1781713842000,-159.0,0.0003195,30]
[425354320,1781713842000,-211.00515377,0.0003199,2]
[425354323,1781713842000,-500.0,0.00031999,2]
[425354321,1781713842000,-151.0,0.00031997,7]
[425354324,1781713842000,-500.0,0.00031999,2]
[425354327,1781713842000,-82125.32991368,0.00032,2]
[425354329,1781713842000,-582.57802036,0.00032,2]
[425354330,1781713842000,-150.72,0.00025875,7]
[425354291,1781713842000,-150.0,0.00031423,7]
[425354326,1781713842000,-376.59,0.00032,2]
[425354332,1781713842000,-3157.5663514,0.00032,2]
[425354331,1781713842000,-14416.31190301,0.00032,2]
[425354333,1781713842000,-48548.13352284,0.00032,2]
[425354334,1781713842000,-150.72,0.00026179,30]
[425354336,1781713842000,-148.9287155,0.00032,2]
[425354335,1781713842000,-150.72,0.00026484,2]
[425354317,1781713842000,-1001.0,0.00031945,120]
[425354325,1781713842000,-5478.0,0.00032,2]
[425354328,1781713842000,-681.24616354,0.00032,2]
[425354314,1781713842000,-159.34577074,0.000319,2]
[425354315,1781713842000,-350.0,0.00031937,22]
[425354294,1781713842000,-249.08879002,0.00031504,2]
[425354297,1781713842000,-150.0,0.00031534,2]
[425354296,1781713842000,-152.0,0.00031522,4]
[425354295,1781713842000,-2209.37,0.00031518,5]
[425354300,1781713842000,-2209.37,0.00031586,5]
[425354293,1781713842000,-151.404,0.00031423,7]
[425354298,1781713842000,-2209.37,0.00031559,7]
[425354304,1781713842000,-2252.543196,0.00031634,2]
[425354306,1781713842000,-500.0,0.00031656,60]
[425354299,1781713842000,-172.76612469,0.00031586,2]
[425354302,1781713842000,-500.0,0.00031615,2]
[425354305,1781713842000,-500.0,0.00031656,60]
[425354303,1781713842000,-2209.37,0.00031616,2]
[425354310,1781713842000,-150.63,0.000318,2]
[425354308,1781713842000,-500.15342479,0.00031766,2]
[425354309,1781713842000,-376.59,0.000318,2]
[425354311,1781713842000,-1670.58779231,0.00031804,2]
[425354312,1781713842000,-500.0,0.00031836,7]
[425354307,1781713842000,-500.0,0.00031656,60]
[425354313,1781713842000,-1114.62226754,0.00031854,2]
[425354357,1781713843000,-71.19574815,0.00028615,7]
[425354349,1781713843000,-150.72,0.00026788,7]
[425354350,1781713843000,-150.72,0.00027093,30]
[425354358,1781713843000,-421.15795456,0.00032,2]
[425354353,1781713843000,-150.72,0.00027701,7]
[425354354,1781713843000,-150.72,0.00028006,30]
[425354356,1781713843000,-79.52425185,0.00028615,7]
[425354355,1781713843000,-150.72,0.0002831,2]
[425354352,1781713843000,-1371.27896389,0.00027397,2]
[425354359,1781713843000,-1909.66153725,0.00032,2]
[425354351,1781713843000,-150.72,0.00027397,2]
[425354385,1781713846000,-151.0,0.00032,7]
[425354384,1781713846000,-151.0,0.00032,7]
[425354386,1781713846000,-151.0,0.00032,7]
[425354387,1781713846000,-300.55566,0.00032,7]
[425354389,1781713846000,-151.0,0.00032,7]
[425354383,1781713846000,-150.63,0.00032,2]
[425354381,1781713846000,-100862.90908896,0.00032,2]
[425354379,1781713846000,-200.0,0.00031474,2]
[425354380,1781713846000,-237503.470763,0.00032,2]
[425354378,1781713846000,-200.0,0.00030716,2]
[425354377,1781713846000,-7327.74779156,0.0003012,10]
[425354375,1781713846000,-1373.75779156,0.00030072,5]
[425354376,1781713846000,-975.52220844,0.0003012,10]
[425354374,1781713846000,-150.72,0.00028919,30]
[425354391,1781713846000,-151.0,0.00032,7]
[425354382,1781713846000,-989.62,0.00032,7]
[425354390,1781713846000,-151.911254,0.00032,7]
[425354403,1781713846000,-599.60298507,0.00032204,2]
[425354392,1781713846000,-151.0,0.00032,7]
[425354406,1781713846000,-402.61,0.00032221,5]
[425354407,1781713846000,-152.0,0.00032256,7]
[425354404,1781713846000,-151.0,0.0003221,5]
[425354405,1781713846000,-179.97,0.00032215,2]
[425354408,1781713846000,-152.0,0.00032256,7]
[425354402,1781713846000,-577.71510604,0.00032185,2]
[425354400,1781713846000,-151.0,0.00032156,2]
[425354388,1781713846000,-151.0,0.00032,7]
[425354399,1781713846000,-482.34,0.00032156,2]
[425354397,1781713846000,-172.76612469,0.00032124,2]
[425354398,1781713846000,-533.15383012,0.00032151,2]
[425354394,1781713846000,-177.711817,0.00032,7]
[425354393,1781713846000,-151.0,0.00032,7]
[425354396,1781713846000,-500.15342479,0.00032111,2]
[425354395,1781713846000,-311.285313,0.00032057,7]
[425354401,1781713846000,-184.91098125,0.00032184,2]
[425354458,1781713847000,-151.0,0.00032877,7]
[425354456,1781713847000,-299.520548,0.00032877,7]
[425354454,1781713847000,-151.0,0.00032877,7]
[425354446,1781713847000,-486.879102,0.00032877,7]
[425354448,1781713847000,-151.0,0.00032877,7]
[425354452,1781713847000,-151.0,0.00032877,7]
[425354444,1781713847000,-151.580918,0.00032877,7]
[425354447,1781713847000,-151.0,0.00032877,7]
[425354468,1781713847000,-151.0,0.00032877,7]
[425354438,1781713847000,-486.879102,0.00032877,7]
[425354440,1781713847000,-151.0,0.00032877,7]
[425354442,1781713847000,-486.879102,0.00032877,7]
[425354457,1781713847000,-151.0,0.00032877,7]
[425354464,1781713847000,-151.0,0.00032877,7]
[425354461,1781713847000,-151.0,0.00032877,7]
[425354463,1781713847000,-151.0,0.00032877,7]
[425354439,1781713847000,-151.0,0.00032877,7]
[425354462,1781713847000,-151.0,0.00032877,7]
[425354465,1781713847000,-151.0,0.00032877,7]
[425354460,1781713847000,-151.0,0.00032877,7]
[425354466,1781713847000,-151.0,0.00032877,7]
[425354467,1781713847000,-151.0,0.00032877,7]
[425354478,1781713847000,-151.0,0.00032877,7]
[425354470,1781713847000,-151.0,0.00032877,7]
[425354469,1781713847000,-151.0,0.00032877,7]
[425354479,1781713847000,-151.0,0.00032877,7]
[425354459,1781713847000,-151.0,0.00032877,7]
[425354434,1781713847000,-151.0,0.00032874,14]
[425354432,1781713847000,-289.89197981,0.00032835,2]
[425354433,1781713847000,-249.08879002,0.00032873,2]
[425354413,1781713847000,-286.55351845,0.000323,7]
[425354414,1781713847000,-1219.12367732,0.000323,2]
[425354409,1781713847000,-1670.58779231,0.0003227,2]
[425354412,1781713847000,-300.0,0.000323,30]
[425354411,1781713847000,-190.8003631,0.000323,2]
[425354410,1781713847000,-1091.26,0.000323,7]
[425354415,1781713847000,-156.0,0.00032397,2]
[425354416,1781713847000,-533.15383012,0.00032398,2]
[425354417,1781713847000,-237.0,0.00032471,2]
[425354418,1781713847000,-989.62,0.000325,7]
[425354423,1781713847000,-250.6746156,0.0003255,2]
[425354419,1781713847000,-500.15342479,0.00032524,2]
[425354436,1781713847000,-151.0,0.00032877,7]
[425354421,1781713847000,-350.0,0.00032548,30]
[425354420,1781713847000,-693.10467467,0.00032545,2]
[425354424,1781713847000,-150.0,0.00032562,2]
[425354425,1781713847000,-382.0,0.00032613,2]
[425354426,1781713847000,-172.76612469,0.00032662,2]
[425354437,1781713847000,-151.0,0.00032877,7]
[425354428,1781713847000,-2886.0,0.00032747,15]
[425354431,1781713847000,-382.0,0.00032835,2]
[425354427,1781713847000,-1670.58779231,0.00032735,2]
[425354430,1781713847000,-350.0,0.00032826,26]
[425354429,1781713847000,-360.99813925,0.00032763,2]
[425354475,1781713847000,-151.0,0.00032877,7]
[425354435,1781713847000,-169.3095512,0.00032876,2]
[425354422,1781713847000,-159.34577074,0.0003255,2]
[425354477,1781713847000,-376.313644,0.00032877,7]
[425354450,1781713847000,-486.879102,0.00032877,7]
[425354474,1781713847000,-151.0,0.00032877,7]
[425354516,1781713847000,-319.919534,0.00032877,7]
[425354515,1781713847000,-741.45691,0.00032877,7]
[425354510,1781713847000,-319.919534,0.00032877,7]
[425354508,1781713847000,-319.919534,0.00032877,7]
[425354509,1781713847000,-153.047622,0.00032877,7]
[425354507,1781713847000,-153.047622,0.00032877,7]
[425354506,1781713847000,-151.0,0.00032877,7]
[425354513,1781713847000,-319.919534,0.00032877,7]
[425354511,1781713847000,-151.0,0.00032877,7]
[425354512,1781713847000,-153.047622,0.00032877,7]
[425354514,1781713847000,-153.047622,0.00032877,7]
[425354518,1781713847000,-235.661501,0.00032877,7]
[425354521,1781713847000,-741.45691,0.00032877,7]
[425354524,1781713847000,-235.661501,0.00032877,7]
[425354527,1781713847000,-494.35972,0.00032877,7]
[425354520,1781713847000,-235.661501,0.00032877,7]
[425354519,1781713847000,-741.45691,0.00032877,7]
[425354522,1781713847000,-235.661501,0.00032877,7]
[425354523,1781713847000,-494.35972,0.00032877,7]
[425354525,1781713847000,-494.35972,0.00032877,7]
[425354526,1781713847000,-333.220308,0.00032877,7]
[425354529,1781713847000,-151.0,0.00032877,7]
[425354528,1781713847000,-305.682459,0.00032877,7]
[425354530,1781713847000,-333.220308,0.00032877,7]
[425354476,1781713847000,-151.0,0.00032877,7]
[425354532,1781713847000,-494.35972,0.00032877,7]
[425354533,1781713847000,-305.682459,0.00032877,7]
[425354517,1781713847000,-741.45691,0.00032877,7]
[425354500,1781713847000,-151.0,0.00032877,7]
[425354531,1781713847000,-152.499197,0.00032877,7]
[425354498,1781713847000,-490.108921,0.00032877,7]
[425354473,1781713847000,-151.0,0.00032877,7]
[425354501,1781713847000,-414.455793,0.00032877,7]
[425354472,1781713847000,-151.0,0.00032877,7]
[425354471,1781713847000,-151.0,0.00032877,7]
[425354493,1781713847000,-151.0,0.00032877,7]
[425354484,1781713847000,-285.900719,0.00032877,7]
[425354482,1781713847000,-376.313644,0.00032877,7]
[425354481,1781713847000,-151.0,0.00032877,7]
[425354492,1781713847000,-151.0,0.00032877,7]
[425354483,1781713847000,-376.313644,0.00032877,7]
[425354490,1781713847000,-151.0,0.00032877,7]
[425354489,1781713847000,-151.0,0.00032877,7]
[425354488,1781713847000,-151.0,0.00032877,7]
[425354480,1781713847000,-376.313644,0.00032877,7]
[425354487,1781713847000,-151.0,0.00032877,7]
[425354485,1781713847000,-151.0,0.00032877,7]
[425354491,1781713847000,-414.455793,0.00032877,7]
[425354494,1781713847000,-414.455793,0.00032877,7]
[425354496,1781713847000,-490.108921,0.00032877,7]
[425354497,1781713847000,-414.455793,0.00032877,7]
[425354495,1781713847000,-151.0,0.00032877,7]
[425354503,1781713847000,-490.108921,0.00032877,7]
[425354504,1781713847000,-151.0,0.00032877,7]
[425354499,1781713847000,-152.940902,0.00032877,7]
[425354502,1781713847000,-490.108921,0.00032877,7]
[425354486,1781713847000,-151.0,0.00032877,7]
[425354505,1781713847000,-151.786839,0.00032877,7]
[425354574,1781713848000,-151.0,0.00032877,7]
[425354567,1781713848000,-167.294248,0.00032877,7]
[425354568,1781713848000,-172.435916,0.00032877,7]
[425354564,1781713848000,-389.892822,0.00032877,7]
[425354566,1781713848000,-151.0,0.00032877,7]
[425354572,1781713848000,-172.435916,0.00032877,7]
[425354570,1781713848000,-172.435916,0.00032877,7]
[425354569,1781713848000,-172.435916,0.00032877,7]
[425354565,1781713848000,-167.294248,0.00032877,7]
[425354563,1781713848000,-151.0,0.00032877,7]
[425354573,1781713848000,-151.0,0.00032877,7]
[425354577,1781713848000,-151.0,0.00032877,7]
[425354576,1781713848000,-151.0,0.00032877,7]
[425354575,1781713848000,-151.0,0.00032877,7]
[425354578,1781713848000,-151.0,0.00032877,7]
[425354579,1781713848000,-151.0,0.00032877,7]
[425354581,1781713848000,-151.0,0.00032877,7]
[425354580,1781713848000,-151.0,0.00032877,7]
[425354582,1781713848000,-151.0,0.00032877,7]
[425354584,1781713848000,-216.282727,0.00032877,7]
[425354583,1781713848000,-216.282727,0.00032877,7]
[425354585,1781713848000,-216.282727,0.00032877,7]
[425354557,1781713848000,-641.874058,0.00032877,7]
[425354586,1781713848000,-151.0,0.00032877,7]
[425354571,1781713848000,-151.0,0.00032877,7]
[425354556,1781713848000,-151.0,0.00032877,7]
[425354548,1781713848000,-151.0,0.00032877,7]
[425354560,1781713848000,-599.430853,0.00032877,7]
[425354597,1781713848000,-279.165023,0.00032877,7]
[425354536,1781713848000,-151.0,0.00032877,7]
[425354537,1781713848000,-305.682459,0.00032877,7]
[425354534,1781713848000,-333.220308,0.00032877,7]
[425354538,1781713848000,-151.0,0.00032877,7]
[425354535,1781713848000,-152.499197,0.00032877,7]
[425354540,1781713848000,-152.499197,0.00032877,7]
[425354539,1781713848000,-333.220308,0.00032877,7]
[425354542,1781713848000,-305.682459,0.00032877,7]
[425354541,1781713848000,-151.0,0.00032877,7]
[425354543,1781713848000,-151.0,0.00032877,7]
[425354544,1781713848000,-389.892822,0.00032877,7]
[425354546,1781713848000,-152.499197,0.00032877,7]
[425354550,1781713848000,-151.0,0.00032877,7]
[425354545,1781713848000,-641.874058,0.00032877,7]
[425354547,1781713848000,-389.892822,0.00032877,7]
[425354549,1781713848000,-641.874058,0.00032877,7]
[425354551,1781713848000,-599.430853,0.00032877,7]
[425354553,1781713848000,-151.0,0.00032877,7]
[425354555,1781713848000,-599.430853,0.00032877,7]
[425354554,1781713848000,-641.874058,0.00032877,7]
[425354552,1781713848000,-389.892822,0.00032877,7]
[425354559,1781713848000,-167.294248,0.00032877,7]
[425354558,1781713848000,-151.0,0.00032877,7]
[425354561,1781713848000,-167.294248,0.00032877,7]
[425354562,1781713848000,-599.430853,0.00032877,7]
[425354587,1781713848000,-216.282727,0.00032877,7]
[425354620,1781713848000,-310.485272,0.00032877,7]
[425354595,1781713848000,-273.113138,0.00032877,7]
[425354622,1781713848000,-212.668575,0.00032877,7]
[425354624,1781713848000,-310.485272,0.00032877,7]
[425354621,1781713848000,-279.408985,0.00032877,7]
[425354623,1781713848000,-151.0,0.00032877,7]
[425354627,1781713848000,-441.883916,0.00032877,120]
[425354629,1781713848000,-5064.0400789,0.00032926,2]
[425354625,1781713848000,-151.0,0.00032877,7]
[425354628,1781713848000,-470.70759331,0.00032877,10]
[425354626,1781713848000,-400.0,0.00032877,2]
[425354641,1781713848000,-211.63693899,0.00033,30]
[425354634,1781713848000,-5222.0,0.00033,2]
[425354619,1781713848000,-279.408985,0.00032877,7]
[425354631,1781713848000,-220.048787,0.00032926,2]
[425354639,1781713848000,-1091.26,0.00033,30]
[425354638,1781713848000,-262.8,0.00033,2]
[425354642,1781713848000,-500.0,0.00033011,8]
[425354632,1781713848000,-158.0,0.0003295,30]
[425354636,1781713848000,-150.0,0.00033,2]
[425354644,1781713848000,-500.0,0.00033097,2]
[425354637,1781713848000,-150.0,0.00033,2]
[425354640,1781713848000,-989.62,0.00033,30]
[425354643,1781713848000,-150.0,0.00033097,120]
[425354633,1781713848000,-159.0,0.0003295,30]
[425354591,1781713848000,-383.38682,0.00032877,7]
[425354635,1781713848000,-150.0,0.00033,14]
[425354615,1781713848000,-151.0,0.00032877,7]
[425354630,1781713848000,-217.63263291,0.00032926,2]
[425354614,1781713848000,-279.408985,0.00032877,7]
[425354618,1781713848000,-478.531381,0.00032877,7]
[425354596,1781713848000,-383.38682,0.00032877,7]
[425354588,1781713848000,-151.0,0.00032877,7]
[425354593,1781713848000,-279.165023,0.00032877,7]
[425354590,1781713848000,-151.0,0.00032877,7]
[425354594,1781713848000,-151.0,0.00032877,7]
[425354589,1781713848000,-383.38682,0.00032877,7]
[425354608,1781713848000,-310.485272,0.00032877,7]
[425354601,1781713848000,-279.165023,0.00032877,7]
[425354598,1781713848000,-176.520296,0.00032877,7]
[425354600,1781713848000,-273.113138,0.00032877,7]
[425354602,1781713848000,-176.520296,0.00032877,7]
[425354599,1781713848000,-478.531381,0.00032877,7]
[425354592,1781713848000,-383.38682,0.00032877,7]
[425354607,1781713848000,-176.520296,0.00032877,7]
[425354605,1781713848000,-279.408985,0.00032877,7]
[425354604,1781713848000,-273.113138,0.00032877,7]
[425354606,1781713848000,-279.165023,0.00032877,7]
[425354610,1781713848000,-273.113138,0.00032877,7]
[425354609,1781713848000,-478.531381,0.00032877,7]
[425354612,1781713848000,-151.0,0.00032877,7]
[425354613,1781713848000,-151.0,0.00032877,7]
[425354611,1781713848000,-209.86588,0.00032877,7]
[425354616,1781713848000,-176.520296,0.00032877,7]
[425354617,1781713848000,-310.485272,0.00032877,7]
[425354603,1781713848000,-478.531381,0.00032877,7]
[425354680,1781713849000,-151.000007,0.00033098,7]
[425354679,1781713849000,-151.0,0.00033098,7]
[425354685,1781713849000,-151.0,0.00033098,7]
[425354684,1781713849000,-151.0,0.00033098,7]
[425354676,1781713849000,-234.902884,0.00033098,7]
[425354678,1781713849000,-352.72823166,0.00033098,2]
[425354682,1781713849000,-187.872603,0.00033098,7]
[425354677,1781713849000,-151.0,0.00033098,7]
[425354670,1781713849000,-236.428046,0.00033098,7]
[425354683,1781713849000,-151.0,0.00033098,7]
[425354681,1781713849000,-179.874816,0.00033098,7]
[425354691,1781713849000,-151.0,0.00033098,7]
[425354686,1781713849000,-151.0,0.00033098,7]
[425354687,1781713849000,-151.0,0.00033098,7]
[425354689,1781713849000,-151.0,0.00033098,7]
[425354690,1781713849000,-151.0,0.00033098,7]
[425354692,1781713849000,-151.0,0.00033098,7]
[425354693,1781713849000,-151.0,0.00033098,7]
[425354695,1781713849000,-151.0,0.00033098,7]
[425354694,1781713849000,-151.0,0.00033098,7]
[425354696,1781713849000,-151.0,0.00033098,7]
[425354697,1781713849000,-151.0,0.00033098,7]
[425354668,1781713849000,-295.909531,0.00033098,7]
[425354699,1781713849000,-151.0,0.00033098,7]
[425354688,1781713849000,-151.0,0.00033098,7]